fUSD/lending_fUSD_20250118
["ID","MTS","AMOUNT","RATE_DAILY","PERIOD"]
[349462768,1737196232176,-3000.0,0.0001968,2]
[349462769,1737196232186,-232.15320794,0.00019692,2]
[349462770,1737196232195,-232.15320794,0.00019706,2]
[349462771,1737196232205,-232.15320794,0.00019719,2]
[349462772,1737196232214,-1000.0,0.00019726,14]
[349462773,1737196232224,-232.15320794,0.00019733,2]
[349462774,1737196232233,-232.15320794,0.00019746,2]
[349462775,1737196232242,-232.15320794,0.0001976,2]
[349462776,1737196232251,-232.15320794,0.00019773,2]
[349462777,1737196232261,-3824.80593436,0.00019777,2]
[349462778,1737196232270,-181.66969374,0.00019777,2]
[349462779,1737196232279,-501.86955079,0.00019778,2]
[349462780,1737196232288,-500.0,0.00019778,2]
[349462781,1737196232297,-500.0,0.00019778,2]
[349462782,1737196232306,-500.0,0.00019778,2]
[349462783,1737196232316,-500.0,0.00019778,2]
[349462784,1737196232325,-208.31,0.00019778,2]
[349462785,1737196232334,-500.0,0.00019778,2]
[349462786,1737196232343,-500.0,0.00019778,2]
[349462787,1737196232353,-500.0,0.00019778,2]
[349462788,1737196232361,-500.0,0.00019778,2]
[349462789,1737196232373,-500.0,0.00019778,2]
[349462790,1737196232382,-500.0,0.00019778,2]
[349462791,1737196232391,-649.9,0.00019778,2]
[349462792,1737196232400,-500.0,0.00019778,2]
[349462793,1737196232409,-580.3,0.00019778,2]
[349462794,1737196232418,-500.0,0.00019778,2]
[349462795,1737196232427,-21420.60873754,0.00019779,2]
[349462796,1737196232436,-500.0,0.00019779,2]
[349462797,1737196232447,-29932.15535268,0.00019779,2]
[349462798,1737196232461,-6482.0,0.00019779,2]
[349462799,1737196232473,-1186.48681213,0.00019779,2]
[349462800,1737196232493,-4595.8233516,0.00019779,2]
[349462801,1737196232504,-3868.01299393,0.00019779,2]
[349462844,1737196237718,-369.14672089,0.00019778,2]
[349462846,1737196237727,-289.3317127,0.00019778,2]
[349462854,1737196237800,-210.6682873,0.00019778,2]
[349462856,1737196237810,-41045.82771267,0.00019779,2]
[349462858,1737196237823,-10323.63868254,0.00019779,2]
[349462860,1737196237834,-10284.11200002,0.00019779,2]
[349462868,1737196237909,-6631.52290236,0.00019779,2]
[349462871,1737196237920,-1047.53154039,0.00019779,2]
[349463093,1737196240096,-500.0,0.00019778,2]
[349463095,1737196240106,-5913.54105168,0.00019779,2]
[349463097,1737196240115,-3216.00654204,0.00019779,2]
[349463100,1737196240140,-1943.25975796,0.00019779,2]
[349463102,1737196240149,-1000.34024204,0.00019779,2]
[349463104,1737196240161,-1013.16,0.00019779,2]
[349463106,1737196240173,-676.28429854,0.00019779,2]
[349463109,1737196240189,-2683.04625942,0.00019779,2]
[349463111,1737196240198,-4602.0452,0.00019779,2]
[349463113,1737196240208,-9510.19988248,0.00019779,2]
[349463117,1737196240231,-617.7171,0.00019779,2]
[349463465,1737196244134,-500.0,0.00019778,2]
[349463466,1737196244144,-1416.97344522,0.00019779,2]
[349463472,1737196245701,-181.60320827,0.00019778,2]
[349463473,1737196245711,-500.0,0.00019778,2]
[349463474,1737196245722,-9098.4177917,0.00019779,2]
[349463672,1737196395903,2000.0,0.00022881,120]
[349463678,1737196928067,416.20178312,0.000202,30]
[349463679,1737196992529,2000.0,0.00022994,120]
[349463680,1737197140159,-779.85,0.0001689,2]
[349463681,1737197140181,-1000.0,0.00018761,2]
[349463682,1737197140202,-250.0,0.00018772,2]
[349463683,1737197140223,-250.0,0.00018777,2]
[349463684,1737197140243,-535.79439305,0.00018781,2]
[349463685,1737197152139,-153.614307,0.0001836,7]
[349463686,1737197152159,-153.614307,0.00018717,2]
[349463687,1737197152180,-1159.14713799,0.00018781,2]
[349463688,1737197152201,-146.7774703,0.00018781,2]
[349463689,1737197225095,-5096.19,0.00018771,2]
[349463690,1737197225116,-11.8925297,0.00018781,2]
[349463691,1737197225138,-168.02,0.00018871,2]
[349463692,1737197225160,-493.14,0.00018883,2]
[349463693,1737197225184,-250.0,0.00018899,2]
[349463694,1737197225205,-153.614307,0.000189,10]
[349463695,1737197225227,-157.156,0.0001891,2]
[349463696,1737197225247,-503.41,0.00018919,2]
[349463697,1737197225268,-779.85,0.00019154,2]
[349463698,1737197225289,-165.6949,0.00019471,2]
[349463699,1737197225310,-300.0,0.00019499,2]
[349463700,1737197225330,-8632.28948279,0.000195,2]
[349463701,1737197225351,-10799.91789007,0.00019571,2]
[349463702,1737197225371,-248.28182367,0.0001958,2]
[349463703,1737197234428,-420.58,0.00018822,2]
[349463704,1737197234451,-29.53336343,0.0001958,2]
[349463705,1737197240100,-2722.1848129,0.0001958,2]
[349463706,1737197240121,-3811.3275,0.00019678,2]
[349463707,1737197240143,-3153.20315503,0.00019679,2]
[349463708,1737197240171,-1069.5679461,0.00019679,2]
[349463709,1737197246148,-2408.75179887,0.00019679,2]
[349463710,1737197246170,-1123.0,0.000197,4]
[349463711,1737197246192,-1000.0,0.00019726,14]
[349463712,1737197246216,-186.44458706,0.0001975,2]
[349463713,1737197246239,-186.44458703,0.00019756,2]
[349463714,1737197246262,-186.44458703,0.00019761,2]
[349463715,1737197246284,-186.44458703,0.00019767,2]
[349463716,1737197246306,-186.44458703,0.00019772,2]
[349463717,1737197246326,-500.0,0.00019773,2]
[349463718,1737197246347,-181.66969374,0.00019777,2]
[349463719,1737197246368,-186.44458703,0.00019778,2]
[349463720,1737197246390,-500.0,0.00019778,2]
[349463721,1737197246411,-500.0,0.00019778,2]
[349463722,1737197246432,-500.0,0.00019778,2]
[349463723,1737197246453,-501.02794296,0.00019778,2]
[349463724,1737197246475,-500.0,0.00019778,2]
[349463725,1737197246496,-500.0,0.00019778,2]
[349463726,1737197246517,-500.0,0.00019778,2]
[349463727,1737197246537,-500.0,0.00019778,2]
[349463728,1737197246558,-500.0,0.00019778,2]
[349463729,1737197246578,-500.0,0.00019778,2]
[349463730,1737197246599,-500.0,0.00019778,2]
[349463731,1737197246620,-500.0,0.00019778,2]
[349463732,1737197246640,-500.0,0.00019778,2]
[349463733,1737197246660,-512.0981695,0.00019778,2]
[349463734,1737197246681,-500.0,0.00019778,2]
[349463735,1737197246703,-501.39196759,0.00019778,2]
[349463736,1737197246723,-500.0,0.00019778,2]
[349463737,1737197246744,-500.0,0.00019778,2]
[349463738,1737197246766,-500.0,0.00019778,2]
[349463739,1737197246786,-500.0,0.00019778,2]
[349463740,1737197246806,-500.0,0.00019778,2]
[349463741,1737197246827,-500.0,0.00019778,2]
[349463742,1737197246848,-500.0,0.00019778,2]
[349463743,1737197246868,-502.65664815,0.00019778,2]
[349463744,1737197246889,-500.0,0.00019778,2]
[349463745,1737197246910,-500.0,0.00019778,2]
[349463746,1737197246936,-500.0,0.00019778,2]
[349463747,1737197246957,-775.85,0.00019778,2]
[349463748,1737197246980,-500.0,0.00019778,2]
[349463749,1737197247003,-500.0,0.00019778,2]
[349463750,1737197247028,-500.0,0.00019778,2]
[349463751,1737197247050,-500.0,0.00019778,2]
[349463752,1737197247073,-500.0,0.00019778,2]
[349463753,1737197247096,-500.0,0.00019778,2]
[349463754,1737197247120,-500.0,0.00019778,2]
[349463755,1737197247144,-679.35,0.00019778,2]
[349463756,1737197247166,-500.0,0.00019778,2]
[349463757,1737197247192,-500.0,0.00019778,2]
[349463758,1737197247215,-500.0,0.00019778,2]
[349463759,1737197247236,-500.0,0.00019778,2]
[349463760,1737197247257,-500.0,0.00019778,2]
[349463761,1737197247278,-337.662,0.00019778,2]
[349463762,1737197247300,-500.0,0.00019778,2]
[349463763,1737197247322,-500.0,0.00019778,2]
[349463764,1737197247343,-500.0,0.00019778,2]
[349463765,1737197247364,-500.0,0.00019778,2]
[349463766,1737197247387,-500.0,0.00019778,2]
[349463767,1737197247408,-500.0,0.00019778,2]
[349463768,1737197247429,-500.0,0.00019778,2]
[349463769,1737197247452,-500.0,0.00019778,2]
[349463770,1737197247475,-500.0,0.00019778,2]
[349463771,1737197247497,-500.0,0.00019778,2]
[349463772,1737197247520,-500.0,0.00019778,2]
[349463773,1737197247541,-500.0,0.00019778,2]
[349463774,1737197247563,-500.0,0.00019778,2]
[349463775,1737197247584,-500.0,0.00019778,2]
[349463776,1737197247605,-500.0,0.00019778,2]
[349463777,1737197247626,-500.0,0.00019778,2]
[349463778,1737197247646,-500.0,0.00019778,2]
[349463779,1737197247669,-500.0,0.00019778,2]
[349463780,1737197247690,-500.0,0.00019778,2]
[349463781,1737197247712,-500.0,0.00019778,2]
[349463782,1737197247734,-500.0,0.00019778,2]
[349463783,1737197247758,-500.0,0.00019778,2]
[349463784,1737197247782,-560.67,0.00019778,2]
[349463785,1737197247804,-577.99,0.00019778,2]
[349463786,1737197247829,-386.19932039,0.00019778,2]
[349463787,1737197247854,-500.0,0.00019778,2]
[349463788,1737197247877,-500.0,0.00019778,2]
[349463789,1737197247898,-45336.29915308,0.00019779,2]
[349463790,1737197247923,-1105.29,0.00019779,2]
[349463791,1737197247944,-186.44458703,0.00019783,2]
[349463792,1737197247970,-186.44458703,0.00019789,2]
[349463793,1737197247992,-186.44458703,0.00019794,2]
[349463794,1737197248016,-150.0,0.00019799,2]
[349463795,1737197248039,-186.44458703,0.000198,2]
[349463796,1737197248060,-1000.0,0.00019801,2]
[349463797,1737197248083,-1000.0,0.00019801,2]
[349463798,1737197248287,-1000.0,0.00019801,2]
[349463799,1737197248310,-1000.0,0.00019801,2]
[349463800,1737197248332,-1000.0,0.00019801,2]
[349463801,1737197248354,-1000.0,0.00019801,2]
[349463802,1737197248376,-1000.0,0.00019801,2]
[349463803,1737197248397,-1000.0,0.00019801,2]
[349463804,1737197248418,-1000.0,0.00019801,2]
[349463805,1737197248438,-1000.0,0.00019801,2]
[349463806,1737197248462,-1000.0,0.00019801,2]
[349463807,1737197248486,-150.0,0.00019812,2]
[349463808,1737197248510,-240.07836445,0.00019836,2]
[349463809,1737197248534,-150.0,0.00019844,2]
[349463810,1737197248555,-264.0,0.0001985,2]
[349463811,1737197248577,-981.04,0.0001986,2]
[349463812,1737197248600,-981.04,0.0001986,2]
[349463813,1737197248622,-981.04,0.0001986,2]
[349463814,1737197248644,-981.04,0.0001986,2]
[349463815,1737197248668,-981.04,0.0001986,2]
[349463816,1737197248692,-150.0,0.0001986,2]
[349463817,1737197248716,-150.0,0.00019867,2]
[349463818,1737197248737,-500.0,0.00019873,2]
[349463819,1737197248758,-500.0,0.00019875,2]
[349463820,1737197248781,-500.0,0.00019875,2]
[349463821,1737197248803,-500.0,0.00019876,2]
[349463822,1737197248824,-500.0,0.00019876,2]
[349463823,1737197248845,-500.0,0.00019876,2]
[349463824,1737197248866,-500.0,0.00019876,2]
[349463825,1737197248890,-1206.87,0.00019876,2]
[349463826,1737197248910,-508.60167629,0.00019876,2]
[349463827,1737197248934,-500.0,0.00019876,2]
[349463828,1737197248956,-500.0,0.00019876,2]
[349463829,1737197248978,-502.15463328,0.00019876,2]
[349463830,1737197249000,-502.8477049,0.00019876,2]
[349463831,1737197249022,-504.88053707,0.00019876,2]
[349463832,1737197249045,-500.0,0.00019876,2]
[349463833,1737197249069,-503.90589667,0.00019876,2]
[349463834,1737197249092,-502.92464172,0.00019876,2]
[349463835,1737197249118,-500.0,0.00019876,2]
[349463836,1737197249139,-500.0,0.00019876,2]
[349463837,1737197249162,-500.0,0.00019876,2]
[349463838,1737197249184,-500.0,0.00019876,2]
[349463839,1737197249206,-501.94757588,0.00019876,2]
[349463840,1737197249227,-500.0,0.00019876,2]
[349463841,1737197249248,-502.80962521,0.00019876,2]
[349463842,1737197249271,-500.0,0.00019876,2]
[349463843,1737197249292,-500.0,0.00019876,2]
[349463844,1737197249313,-500.0,0.00019876,2]
[349463845,1737197249334,-500.0,0.00019876,2]
[349463846,1737197249356,-275.213206,0.00019876,2]
[349463847,1737197249377,-500.0,0.00019876,2]
[349463848,1737197249398,-514.02706489,0.00019876,2]
[349463849,1737197249418,-500.0,0.00019876,2]
[349463850,1737197249438,-500.0,0.00019876,2]
[349463851,1737197249476,-500.0,0.00019876,2]
[349463852,1737197249499,-500.0,0.00019876,2]
[349463853,1737197249521,-500.0,0.00019876,2]
[349463854,1737197249542,-500.0,0.00019876,2]
[349463855,1737197249565,-500.0,0.00019876,2]
[349463856,1737197249587,-500.0,0.00019876,2]
[349463857,1737197249611,-500.0,0.00019876,2]
[349463858,1737197249632,-500.0,0.00019876,2]
[349463859,1737197249654,-500.0,0.00019876,2]
[349463860,1737197249675,-500.0,0.00019876,2]
[349463861,1737197249696,-500.0,0.00019876,2]
[349463862,1737197249720,-502.6829081,0.00019876,2]
[349463863,1737197249741,-500.0,0.00019876,2]
[349463864,1737197249761,-500.0,0.00019876,2]
[349463865,1737197249782,-500.0,0.00019876,2]
[349463866,1737197249804,-500.0,0.00019876,2]
[349463867,1737197249825,-500.0,0.00019876,2]
[349463868,1737197249846,-500.0,0.00019876,2]
[349463869,1737197249867,-500.0,0.00019876,2]
[349463870,1737197249888,-500.0,0.00019876,2]
[349463871,1737197249908,-500.0,0.00019876,2]
[349463872,1737197249932,-500.0,0.00019876,2]
[349463873,1737197249957,-500.0,0.00019876,2]
[349463874,1737197249979,-500.0,0.00019876,2]
[349463875,1737197250001,-500.0,0.00019876,2]
[349463876,1737197250024,-500.0,0.00019876,2]
[349463877,1737197250051,-500.0,0.00019876,2]
[349463878,1737197250073,-500.0,0.00019876,2]
[349463879,1737197250095,-500.0,0.00019876,2]
[349463880,1737197250116,-500.0,0.00019876,2]
[349463881,1737197250138,-500.0,0.00019876,2]
[349463882,1737197250159,-500.0,0.00019876,2]
[349463883,1737197250180,-500.0,0.00019876,2]
[349463884,1737197250203,-218.14564061,0.00019876,2]
[349463885,1737197250223,-500.0,0.00019876,2]
[349463886,1737197250245,-500.0,0.00019876,2]
[349463887,1737197250266,-503.1682091,0.00019876,2]
[349463888,1737197250288,-500.0,0.00019876,2]
[349463889,1737197250309,-500.0,0.00019876,2]
[349463890,1737197250331,-500.0,0.00019876,2]
[349463891,1737197250352,-500.0,0.00019876,2]
[349463892,1737197250372,-500.0,0.00019876,2]
[349463893,1737197250392,-500.0,0.00019876,2]
[349463894,1737197250414,-500.0,0.00019876,2]
[349463895,1737197250439,-500.0,0.00019876,2]
[349463896,1737197250461,-500.0,0.00019876,2]
[349463897,1737197250482,-500.0,0.00019876,2]
[349463898,1737197250502,-500.0,0.00019876,2]
[349463899,1737197250523,-500.0,0.00019876,2]
[349463900,1737197250545,-500.0,0.00019876,2]
[349463901,1737197250565,-500.0,0.00019876,2]
[349463902,1737197250586,-500.0,0.00019876,2]
[349463903,1737197250606,-500.0,0.00019876,2]
[349463904,1737197250626,-500.0,0.00019876,2]
[349463905,1737197250647,-500.0,0.00019876,2]
[349463906,1737197250667,-461.83929782,0.00019876,2]
[349463907,1737197250688,-500.0,0.00019876,2]
[349463908,1737197250712,-500.0,0.00019876,2]
[349463909,1737197250734,-500.0,0.00019876,2]
[349463910,1737197250755,-502.83657458,0.00019876,2]
[349463911,1737197250776,-500.0,0.00019876,2]
[349463912,1737197250798,-165.85767342,0.00019876,2]
[349463913,1737197250819,-594.09341337,0.00019876,2]
[349463914,1737197250840,-500.0,0.00019876,2]
[349463915,1737197250864,-500.0,0.00019876,2]
[349463916,1737197250886,-500.0,0.00019876,2]
[349463917,1737197250908,-636.13092813,0.00019876,2]
[349463918,1737197250932,-500.0,0.00019876,2]
[349463919,1737197250954,-500.0,0.00019876,2]
[349463920,1737197250976,-500.0,0.00019876,2]
[349463921,1737197250997,-500.0,0.00019876,2]
[349463922,1737197251018,-504.33638045,0.00019876,2]
[349463923,1737197251039,-369.27746265,0.00019876,2]
[349463924,1737197251061,-500.0,0.00019876,2]
[349463925,1737197251083,-500.0,0.00019876,2]
[349463926,1737197251105,-500.0,0.00019876,2]
[349463927,1737197251125,-500.0,0.00019876,2]
[349463928,1737197251148,-500.0,0.00019876,2]
[349463929,1737197251171,-500.0,0.00019876,2]
[349463930,1737197251193,-500.0,0.00019876,2]
[349463931,1737197251217,-295.88711725,0.00019876,2]
[349463932,1737197251240,-500.0,0.00019876,2]
[349463933,1737197251262,-500.0,0.00019876,2]
[349463934,1737197251287,-500.0,0.00019876,2]
[349463935,1737197251309,-500.0,0.00019876,2]
[349463936,1737197251330,-500.0,0.00019876,2]
[349463937,1737197251352,-500.0,0.00019876,2]
[349463938,1737197251375,-500.0,0.00019876,2]
[349463939,1737197251395,-202.69937262,0.00019876,2]
[349463940,1737197251416,-500.0,0.00019876,2]
[349463941,1737197251438,-160.38590834,0.00019876,2]
[349463942,1737197251790,-319.82243725,0.000198,2]
[349463943,1737197251812,-339.61409166,0.00019876,2]
[349463944,1737197251834,-500.0,0.00019876,2]
[349463945,1737197251856,-498.2001128,0.00019876,2]
[349463946,1737197252137,-1.7998872,0.00019876,2]
[349463947,1737197252159,-500.0,0.00019876,2]
[349463948,1737197252182,-350.75247272,0.00019876,2]
[349463961,1737197432050,-503.25,0.00018905,2]
[349463962,1737197432061,-250.0,0.00018914,2]
[349463963,1737197432072,-2751.0,0.00018922,2]
[349463964,1737197432082,-2500.0,0.00019776,2]
[349463965,1737197432091,-775.51,0.0001986,2]
[349463966,1737197432101,-981.04,0.0001986,2]
[349463967,1737197432110,-981.04,0.0001986,2]
[349463968,1737197432120,-152.4,0.00019867,2]
[349463969,1737197432130,-3204.3912565,0.00019872,2]
[349463970,1737197432139,-354.29906211,0.00019873,2]
[349463971,1737197432149,-500.0,0.00019875,2]
[349463972,1737197432159,-500.0,0.00019875,2]
[349463973,1737197432168,-500.0,0.00019875,2]
[349463974,1737197432178,-500.0,0.00019875,2]
[349463975,1737197432187,-476.44805618,0.00019875,2]
[349463976,1737197432197,-229.83661127,0.00019875,2]
[349463977,1737197432207,-500.0,0.00019875,2]
[349463978,1737197432217,-500.0,0.00019875,2]
[349463979,1737197432226,-633.03,0.00019875,2]
[349463980,1737197432236,-500.0,0.00019875,2]
[349463981,1737197432245,-149.24752728,0.00019876,2]
[349463982,1737197432255,-500.0,0.00019876,2]
[349463983,1737197432265,-500.0,0.00019876,2]
[349463984,1737197432274,-500.0,0.00019876,2]
[349463985,1737197432283,-500.46576851,0.00019876,2]
[349463986,1737197432293,-500.0,0.00019876,2]
[349463987,1737197432302,-500.0,0.00019876,2]
[349463988,1737197432312,-500.0,0.00019876,2]
[349463989,1737197432321,-500.0,0.00019876,2]
[349463990,1737197432331,-500.0,0.00019876,2]
[349463991,1737197432340,-500.0,0.00019876,2]
[349463992,1737197432350,-500.0,0.00019876,2]
[349463993,1737197432364,-500.0,0.00019876,2]
[349463995,1737197432377,-500.0,0.00019876,2]
[349463997,1737197432387,-500.0,0.00019876,2]
[349463999,1737197432396,-500.0,0.00019876,2]
[349464001,1737197432405,-500.0,0.00019876,2]
[349464003,1737197432414,-500.0,0.00019876,2]
[349464005,1737197432424,-582.6120526,0.00019876,2]
[349464007,1737197432433,-500.0,0.00019876,2]
[349464009,1737197432443,-500.0,0.00019876,2]
[349464011,1737197432453,-508.3901249,0.00019876,2]
[349464013,1737197432462,-500.0,0.00019876,2]
[349464015,1737197432471,-500.0,0.00019876,2]
[349464017,1737197432481,-500.0,0.00019876,2]
[349464019,1737197432492,-500.0,0.00019876,2]
[349464021,1737197432501,-500.0,0.00019876,2]
[349464023,1737197432511,-500.0,0.00019876,2]
[349464026,1737197432521,-778.76,0.00019876,2]
[349464028,1737197432530,-501.54594128,0.00019876,2]
[349464029,1737197432540,-500.0,0.00019876,2]
[349464031,1737197432549,-500.0,0.00019876,2]
[349464033,1737197432559,-500.0,0.00019876,2]
[349464035,1737197432568,-1189.79,0.00019876,2]
[349464037,1737197432577,-500.0,0.00019876,2]
[349464064,1737197432812,-500.36168689,0.00019876,2]
[349464066,1737197432822,-500.0,0.00019876,2]
[349464068,1737197432831,-500.0,0.00019876,2]
[349464070,1737197432841,-500.0,0.00019876,2]
[349464072,1737197432850,-500.0,0.00019876,2]
[349464074,1737197432863,-500.0,0.00019876,2]
[349464076,1737197432872,-500.0,0.00019876,2]
[349464078,1737197432882,-502.70763813,0.00019876,2]
[349464080,1737197432891,-504.26776144,0.00019876,2]
[349464082,1737197432901,-500.0,0.00019876,2]
[349464084,1737197432911,-500.0,0.00019876,2]
[349464086,1737197432920,-500.0,0.00019876,2]
[349464088,1737197432931,-500.0,0.00019876,2]
[349464090,1737197432941,-1364.4,0.00019876,2]
[349464092,1737197432952,-500.0,0.00019876,2]
[349464094,1737197432961,-611.47956126,0.00019876,2]
[349464096,1737197432971,-391.82584601,0.00019876,2]
[349464098,1737197432980,-1518.29,0.00019876,2]
[349464100,1737197432990,-500.0,0.00019876,2]
[349464102,1737197433001,-502.15679937,0.00019876,2]
[349464104,1737197433010,-500.0,0.00019876,2]
[349464106,1737197433019,-948.0,0.00019876,2]
[349464108,1737197433030,-500.0,0.00019876,2]
[349464110,1737197433039,-597.58,0.00019876,2]
[349464112,1737197433050,-597.58,0.00019876,2]
[349464114,1737197433059,-597.58,0.00019876,2]
[349464116,1737197433072,-597.58,0.00019876,2]
[349464118,1737197433082,-500.0,0.00019876,2]
[349464120,1737197433094,-500.0,0.00019876,2]
[349464122,1737197433103,-500.0,0.00019876,2]
[349464124,1737197433115,-500.0,0.00019876,2]
[349464126,1737197433124,-500.0,0.00019876,2]
[349464128,1737197433134,-500.0,0.00019876,2]
[349464130,1737197433143,-293.3843614,0.00019876,2]
[349464133,1737197433157,-206.6156386,0.00019876,2]
[349464135,1737197433167,-500.0,0.00019876,2]
[349464137,1737197433177,-500.0,0.00019876,2]
[349464139,1737197433186,-1063.71,0.00019876,2]
[349464141,1737197433196,-500.0,0.00019876,2]
[349464143,1737197433207,-1063.71,0.00019876,2]
[349464145,1737197433216,-1063.71,0.00019876,2]
[349464147,1737197433226,-1063.71,0.00019876,2]
[349464149,1737197433235,-500.0,0.00019876,2]
[349464151,1737197433244,-500.0,0.00019876,2]
[349464153,1737197433254,-500.0,0.00019876,2]
[349464155,1737197433264,-500.0,0.00019876,2]
[349464157,1737197433273,-500.0,0.00019876,2]
[349464159,1737197433283,-2236.49,0.00019876,2]
[349464161,1737197433292,-500.0,0.00019876,2]
[349464163,1737197433302,-579.15,0.00019876,2]
[349464165,1737197433311,-500.0,0.00019876,2]
[349464167,1737197433320,-500.0,0.00019876,2]
[349464169,1737197433330,-429.27302523,0.00019876,2]
[349464171,1737197433342,-70.72697477,0.00019876,2]
[349464173,1737197433351,-500.0,0.00019876,2]
[349464175,1737197433361,-514.84,0.00019876,2]
[349464177,1737197433371,-500.0,0.00019876,2]
[349464179,1737197433382,-500.0,0.00019876,2]
[349464181,1737197433391,-500.0,0.00019876,2]
[349464183,1737197433400,-500.0,0.00019876,2]
[349464185,1737197433410,-500.0,0.00019876,2]
[349464187,1737197433419,-500.0,0.00019876,2]
[349464189,1737197433428,-500.0,0.00019876,2]
[349464191,1737197433438,-717.85,0.00019876,2]
[349464193,1737197433447,-500.0,0.00019876,2]
[349464195,1737197433457,-500.0,0.00019876,2]
[349464197,1737197433467,-175.58302521,0.00019876,2]
[349464200,1737197433492,-324.41697479,0.00019876,2]
[349464202,1737197433502,-500.0,0.00019876,2]
[349464204,1737197433512,-500.0,0.00019876,2]
[349464206,1737197433522,-500.0,0.00019876,2]
[349464208,1737197433532,-1010.73,0.00019876,2]
[349464210,1737197433541,-500.0,0.00019876,2]
[349464212,1737197433551,-500.0,0.00019876,2]
[349464214,1737197433560,-500.0,0.00019876,2]
[349464216,1737197433570,-500.0,0.00019876,2]
[349464218,1737197433579,-500.0,0.00019876,2]
[349464220,1737197433588,-500.0,0.00019876,2]
[349464222,1737197433597,-500.0,0.00019876,2]
[349464224,1737197433608,-500.0,0.00019876,2]
[349464226,1737197433618,-500.0,0.00019876,2]
[349464228,1737197433627,-500.0,0.00019876,2]
[349464230,1737197433637,-500.0,0.00019876,2]
[349464232,1737197433647,-2314.97639382,0.00019876,2]
[349464236,1737197433671,-1256.60820089,0.00019876,2]
[349464238,1737197433682,-559.92964875,0.00019876,2]
[349464645,1737197437942,-438.07575654,0.00019876,2]
[349464647,1737197437951,-500.0,0.00019876,2]
[349464649,1737197437960,-500.0,0.00019876,2]
[349464650,1737197437969,-500.0,0.00019876,2]
[349464652,1737197437978,-500.0,0.00019876,2]
[349464654,1737197437987,-500.0,0.00019876,2]
[349464656,1737197438004,-500.0,0.00019876,2]
[349464659,1737197438014,-500.0,0.00019876,2]
[349464661,1737197438023,-500.0,0.00019876,2]
[349464663,1737197438033,-500.0,0.00019876,2]
[349464665,1737197438045,-500.0,0.00019876,2]
[349464667,1737197438055,-667.18,0.00019876,2]
[349464668,1737197438064,-500.0,0.00019876,2]
[349464670,1737197438074,-500.0,0.00019876,2]
[349464672,1737197438084,-691.56,0.00019876,2]
[349464674,1737197438093,-500.0,0.00019876,2]
[349464676,1737197438102,-500.0,0.00019876,2]
[349464678,1737197438112,-654.5567,0.00019876,2]
[349464680,1737197438122,-873.36,0.00019876,2]
[349464682,1737197438131,-873.36,0.00019876,2]
[349464684,1737197438140,-873.36,0.00019876,2]
[349464686,1737197438150,-873.36,0.00019876,2]
[349464688,1737197438160,-500.0,0.00019876,2]
[349464690,1737197438169,-500.0,0.00019876,2]
[349464692,1737197438179,-500.0,0.00019876,2]
[349464694,1737197438189,-553.12,0.00019876,2]
[349464696,1737197438198,-500.0,0.00019876,2]
[349464698,1737197438208,-320.87,0.00019876,2]
[349464700,1737197438218,-500.0,0.00019876,2]